Cogmind - Beta 9.5 @@@ ROGUE MODE // 2020.04.04 @ 01:20:24 Player: IAMCRAIG Result: Destroyed by D-53 Grenadier with Mini Grenade Launcher Performance ------------- Evolutions (0) 0 Regions Visited (2) 400 Robots Destroyed (27) 135 Value Destroyed (566) 566 Prototype IDs (3) 60 Alien Tech Used (0) 0 Bonus (4) 4 TOTAL SCORE: 1165 Bonus ------- High Alert Combat Kills 4 Cogmind --------- Core Integrity 0/250 Matter 257/300 Energy 83/100 System Corruption 0% Temperature Cool (0) Movement Treading (180) Ox1 Location -10/Mines Parts ------- > --- POWER (1) -------- (None) > --- PROPULSION (2) --- Light Treads > --- UTILITY (2) ------ Medium Storage Unit Large Storage Unit > --- WEAPON (2) ------- (None) > --- INVENTORY (14) --- Ion Engine Medium Storage Unit Large Storage Unit High-capacity Storage Unit High-capacity Battery (400) Medium Matter Pod (0) Improved Terrain Scanner Seismic Analyzer Weapon Shielding Mining Laser Peak State ------------ > --- POWER ------------ Light Ion Engine > --- PROPULSION ------- Compact Wheel Compact Wheel > --- UTILITY ---------- Medium Storage Unit Large Storage Unit > --- WEAPON ----------- EM Pulse Gun Grenade Launcher > --- INVENTORY -------- Ion Engine Light Treads Light Treads Wheel Wheel Small Storage Unit Medium Storage Unit Large Storage Unit Improved Terrain Scanner Seismic Analyzer Mining Laser [Rating: 8] Favorites ----------- Power Light Ion Engine Engine Light Ion Engine Propulsion Compact Wheel Treads Light Treads Wheel Compact Wheel Utility Large Storage Unit Storage Large Storage Unit Weapon EM Pulse Gun Energy Gun EM Pulse Gun Ballistic Gun Light Assault Rifle Launcher Grenade Launcher Build | -11 -10 -10 ------- Run | Scr Mat Min Slots Evolved . | . . . Power . | . . . Propulsion . | . . . Utility . | . . . Weapon . | . . . Parts Attached 23 | 6 13 4 Power 3 | 1 2 . Engine 3 | 1 2 . Core . | . . . Reactor . | . . . Propulsion 7 | 2 1 4 Treads 2 | . . 2 Leg . | . . . Wheel 5 | 2 1 2 Hover . | . . . Flight . | . . . Utility 9 | 2 7 . Device . | . . . Storage 9 | 2 7 . Processor . | . . . Hackware . | . . . Protection . | . . . Artifact . | . . . Weapon 4 | 1 3 . Energy Gun 2 | 1 1 . Energy Cannon . | . . . Ballistic Gun 1 | . 1 . Ballistic Cannon . | . . . Launcher 1 | . 1 . Special Weapon . | . . . Impact Weapon . | . . . Slashing Weapon . | . . . Piercing Weapon . | . . . Special Melee Weapon . | . . . Unidentified Prototypes . | . . . Parts Lost 10 | . 2 8 Power 1 | . . 1 Propulsion 5 | . . 5 Utility . | . . . Weapon 4 | . 2 2 Highest Loss Streak 8 | . 1 8 Average Slot Usage (%) 96 | . 96 94 Engine 13 | . 14 12 Wheel 27 | . 28 25 Storage 28 | . 28 28 Energy Gun 13 | . 13 12 Ballistic Gun 7 | . 6 12 Launcher 4 | . 5 . Naked Turns . | . . . Heaviest Build 37 | 13 37 30 Greatest Support 40 | 26 32 40 Greatest Overweight (x) 1 | . 1 1 Average Overweight (x) . | . . . Largest Inventory Capacity 18 | 8 18 14 Average Capacity 13 | 6 14 14 Most Carried 14 | 8 14 14 Average Carried 12 | 3 13 13 Final Capacity 14 | 8 14 14 Final Carried 14 | 8 14 10 Class Distribution -------------------- 100% | Mutant Dominant Class ---------------- Mutant | -10/Materials Mutant | -10/Mines Resources | -11 -10 -10 ----------- Run | Scr Mat Min Matter Collected 543 | 260 148 135 Remotely . | . . . Salvage Created 695 | 119 457 119 Parts 56 | 7 40 9 Haulers Intercepted 1 | . 1 . Recyclers Shooed 1 | . 1 . Parts Field Recycled . | . . . Retrieved Matter . | . . . Parts Self-Destructed . | . . . Prevented . | . . . Kills | -11 -10 -10 ------- Run | Scr Mat Min Combat Hostiles Destroyed 15 | . 13 2 Guns 3 | . 3 . AOE 12 | . 10 2 Classes Destroyed 8 | 2 6 . Worker 1 | . 1 . Builder 2 | . 2 . Tunneler 3 | 1 1 1 Hauler 1 | . 1 . Recycler 3 | 1 2 . Watcher 2 | . 2 . Swarmer 6 | . 6 . Grunt 9 | . 7 2 Best Kill Streak 18 | 1 18 2 Combat Bots Only 9 | . 9 2 Max Kills in Single Turn 2 | 1 2 2 Gunslinging . | . . . Exploded 2 | . 2 2 Melee . | . . . Uniques/NPCs Destroyed . | . . . Combat | -11 -10 -10 -------- Run | Scr Mat Min Damage Taken 1092 | . 263 829 Core 278 | . 47 231 Absorbed by Shields . | . . . Core Remaining (%) 100 | 100 . . Volleys Fired 55 | 9 41 5 Largest 2 | 1 2 2 Hottest 60 | 40 60 60 Shots Fired 71 | 9 52 10 Gun 52 | 9 33 10 Cannon . | . . . Launcher 19 | . 19 . Special . | . . . Kinetic 16 | . 11 5 Thermal . | . . . Explosive 19 | . 19 . Electromagnetic 36 | 9 22 5 Robot Hit Streak 9 | 3 5 9 Robot Miss Streak 3 | 2 3 1 Penetration Max . | . . . Secondary Targets . | . . . Shots Hit Robots 33 | 5 20 8 Core Hits 52 | 3 45 4 Critical Hits . | . . . Critical Kills . | . . . Critical Parts Destroyed . | . . . Melee Attacks . | . . . Impact . | . . . Slashing . | . . . Piercing . | . . . Sneak Attacks . | . . . Combat Hostiles . | . . . Follow-up Attacks . | . . . Damage Inflicted 1858 | 73 1587 198 Guns 408 | 73 234 101 Cannons . | . . . Explosions 1450 | . 1353 97 Melee . | . . . Ramming . | . . . Kinetic 62 | . 36 26 Thermal 192 | . 95 97 Explosive 827 | . 827 . Electromagnetic 777 | 73 629 75 Impact . | . . . Slashing . | . . . Piercing . | . . . Highest Corruption . | . . . Average Corruption . | . . . Corruption Purged . | . . . Overload Shots . | . . . Overflow Damage 23 | . 23 . Projectiles . | . . . Explosions 23 | . 23 . Melee . | . . . Knockbacks . | . . . Impact . | . . . Kinetic . | . . . Secondary . | . . . Self-Inflicted Damage . | . . . Shots . | . . . Rammed . | . . . Targets Rammed . | . . . Kicked . | . . . Crushed . | . . . Highest Temperature 40 | . 40 26 Average Temperature 14 | . 14 15 Received Heat Transfer 60 | . 54 6 Siege Activations . | . . . Robots Corrupted . | . . . Combat Hostiles . | . . . Parts Fried 2 | . 2 . Impact Corruptions . | . . . Robots Melted . | . . . Combat Hostiles . | . . . Parts Melted . | . . . Heat Transferred 250 | . 150 100 Parts Sabotaged . | . . . Parts Stolen . | . . . Parts Stripped . | . . . Power Chain Reactions 5 | . 4 1 Missiles Intercepted . | . . . Alert | -11 -10 -10 ------- Run | Scr Mat Min Peak Influence 444 | 10 444 70 Average Influence 99 | 3 125 46 Maximum Alert Level 2 | . 2 . Low Security (%) 73 | 100 63 100 Level 1 23 | . 32 . Level 2 3 | . 4 . Level 3 . | . . . Level 4 . | . . . Level 5 . | . . . High Security . | . . . Max Security . | . . . Squads Dispatched 2 | . 2 . Investigation 1 | . 1 . Extermination . | . . . Reinforcement 1 | . 1 . Assault . | . . . Garrison . | . . . Intercept . | . . . Construction Impeded . | . . . Haulers Reinforced . | . . . Stealth | -11 -10 -10 --------- Run | Scr Mat Min Distress Signals 3 | . 3 . Communications Jammed . | . . . Distress Signals . | . . . Times Spotted 34 | . 28 6 Peak Tracking Total 4 | . 4 2 Tactical Retreats 5 | . 4 1 Traps | -11 -10 -10 ------- Run | Scr Mat Min Traps Triggered 4 | . 4 . Indirectly 4 | . 4 . Trap Hack Attempts . | . . . Triggered . | . . . Disarmed . | . . . Reprogrammed 6 | . 6 . Reused . | . . . Traps Extracted . | . . . Installed . | . . . Triggered . | . . . Machines | -11 -10 -10 ---------- Run | Scr Mat Min Machines Disabled 9 | . 9 . Max in Single Turn 3 | . 3 . Machines Sabotaged . | . . . Garrisons Compromised . | . . . Overloaded Fab Kills . | . . . Fab Network Shutdowns . | . . . Hacking | -11 -10 -10 --------- Run | Scr Mat Min Machines Accessed 8 | . 8 . Terminals 7 | . 7 . Fabricators . | . . . Repair Stations . | . . . Recycling Units 1 | . 1 . Scanalyzers . | . . . Garrison Access . | . . . Total Hacks 35 | . 35 . Successful 27 | . 27 . Failed 8 | . 8 . Catastrophic 1 | . 1 . Database Lockouts . | . . . Manual 23 | . 23 . Terminals 32 | . 32 . Fabricators . | . . . Repair Stations . | . . . Recycling Units 3 | . 3 . Scanalyzers . | . . . Garrison Access . | . . . Terminal Hacks 11 | . 11 . Robot Analysis 3 | . 3 . Prototype ID Bank 2 | . 2 . Alert Level 2 | . 2 . Unreport Threat 2 | . 2 . Locate Traps 1 | . 1 . Reprogram Traps 1 | . 1 . Fabricator Hacks . | . . . Repair Station Hacks . | . . . Recycling Unit Hacks 2 | . 2 . Report Inventory 1 | . 1 . Retrieve Components 1 | . 1 . Scanalyzer . | . . . Garrison Access Hacks . | . . . Unauthorized Hacks 31 | . 31 . Terminals 13 | . 13 . Track 2 | . 2 . Assimilate 1 | . 1 . Botnet 7 | . 7 . Disrupt 2 | . 2 . Operators 1 | . 1 . Fabricators . | . . . Repair Stations . | . . . Recycling Units 1 | . 1 . Reject 1 | . 1 . Scanalyzers . | . . . Garrison Access . | . . . Data Cores Recovered . | . . . Used . | . . . Hacking Detections 7 | . 7 . Full Trace Events . | . . . Feedback Events . | . . . Feedback Blocked . | . . . Robot Schematics Acquired . | . . . Robots Built . | . . . Matter . | . . . Time . | . . . Total Robot Build Rating . | . . . Part Schematics Acquired . | . . . Parts Built . | . . . Matter . | . . . Time . | . . . Total Part Build Rating . | . . . Parts Repaired . | . . . Time . | . . . Parts Recycled . | . . . Recycled Matter . | . . . Retrieved Matter . | . . . Retrieved Components 8 | . 8 . Parts Scanalyzed . | . . . Part Schematics Acquired . | . . . Parts Damaged . | . . . Bothacking | -11 -10 -10 ------------ Run | Scr Mat Min Used RIF Installer . | . . . Robots Hacked . | . . . Non-combat . | . . . Combat . | . . . Robot Hacks Applied . | . . . Relay Couplers Released . | . . . Robots Rewired . | . . . Allies Hacked . | . . . Hacks Repelled . | . . . Allies | -11 -10 -10 -------- Run | Scr Mat Min Total Allies 3 | . 1 2 Largest Group 2 | . 1 2 Highest-Rated Group 36 | . 10 36 Highest-Rated Ally 31 | . 10 31 Total Orders . | . . . Ally Attacks 1 | . . 1 Total Damage 21 | . . 21 Kills 1 | . . 1 Allies Corrupted . | . . . Allies Melted . | . . . Intel | -11 -10 -10 ------- Run | Scr Mat Min Robot Analysis Total 3 | . 3 . Derelict Logs Recovered . | . . . Drone Launches . | . . . Drone Recoveries . | . . . Exploration | -11 -10 -10 ------------- Run | Scr Mat Min Turns Passed 1136 | 96 809 231 Spaces Moved 932 | 69 665 198 Core 1 | 1 . . Treads 7 | . . 7 Legs . | . . . Wheels 924 | 68 665 191 Hover . | . . . Flight . | . . . Fastest Speed 50 | 50 90 90 Average Speed 99 | 88 100 102 Slowest Speed 160 | 90 110 160 Overloaded Moves . | . . . Propulsion Burnouts . | . . . Robots Hopped . | . . . Cave-ins Triggered . | . . . Exploration Rate (%) 45 | 4 90 41 Regions Visited 2 Branch Regions 1 Pre-discovered Areas . | . . . Known Exits Taken . | . . . Unknown Exits Taken 2 | 1 1 . Scrap Searched 1 | . . 1 Spaces Dug 8 | . 8 . Terrain Destroyed 65 | . 57 8 Melee . | . . . Projectile . | . . . AOE 65 | . 57 8 Actions | -11 -10 -10 --------- Run | Scr Mat Min Total 1066 | 91 759 216 Wait 34 | . 25 9 Move 930 | 68 664 198 Hop . | . . . Pick Up 17 | 8 9 . Fast Attach 8 | 6 2 . Attach 5 | . 1 4 Detach . | . . . Swap 10 | . 10 . Drop 7 | . 7 . Fire 55 | 9 41 5 Melee . | . . . Ram . | . . . Kick . | . . . Crush . | . . . Escape Stasis . | . . . Rewire . | . . . Trap . | . . . Miscellaneous . | . . . Route ------- -11/Scrapyard -10/Materials (discovered 4 exits: [*Mat x2] / [*Min x2]) -10/Mines History --------- Turn | Location | Event 32 | -11/Scrapyard | Discovered new exit (range 14) 97 | -11/Scrapyard | Entered Materials 282 | -10/Materials | Discovered new exit (range 11) 309 | -10/Materials | Build established: Mutant 338 | -10/Materials | Discovered new exit (range 8) 471 | -10/Materials | Destroyed 9 combat bots 537 | -10/Materials | Discovered new exit (range 15) 736 | -10/Materials | Discovered new exit (range 10) 906 | -10/Materials | Entered Mines 1075 | -10/Mines | Assembled infested the area 1080 | -10/Mines | Assisted by a Guerilla fighting off Assembled 1122 | -10/Mines | Core integrity fell below 50% 1127 | -10/Mines | Core integrity fell below 20% 1137 | -10/Mines | Destroyed by D-53 Grenadier with Mini Grenade Launcher Last Messages --------------- 01095_ 49-6QJ(z) destroyed. 01112_ HF-MQ5(h): "I'll hold them off! Go on ahead or try to find another way!" 01112_ HV Slug penetrates Wall. 01114_ HV Slug penetrates D-53 Grenadier. 01114_ D-53 Grenadier suffers critical hit. 01114_ D-53 Grenadier knocked back. 01114_ HV Slug penetrates D-53 Grenadier. 01115_ Lgt. Ion Engine destroyed. 01115_ Com. Wheel destroyed. 01115_ EM Pulse Gun destroyed. 01115_ HF-MQ5(h) destroyed. 01116_ Lgt. Assault Rifle destroyed. 01123_ The unstable cave ceiling collapses. 01124_ Wheel destroyed. 01126_ The unstable cave ceiling collapses. 01131_ K-01 Serf destroyed. 01134_ The unstable cave ceiling collapses. 01136_ Lgt. Treads destroyed. 01136_ R-06 Scavenger destroyed. Map ----- +----------------------------------------------------+ | ??????????????????### ##??# ???????????????????? | | ??????????????????# ##?# #???????????????????? | | ??????????????????# ### #???????????????????? | | ??????????????????## #? #???????????????????? | | ??????????????????# #? #???????????????????? | | ??????????????????## ! #### #???????????????????? | | ???????????????????## #???????????????????? | | ????????????????????####### #???????????????????? | | ?????????????????????????? #???????????????????? | | ?????????????????????????## ###?????????????????? | | ????????????????????????## ###???????????????? | | ????????????????????????# ##??????????????? | | ???????????????????????## ########???????? | | ?####################### # ##??????? | | ?# ## # # ##?????? | | ?# """ """ """ """ ## #?????? | | ?# """ """ """ """ ## dd #?????? | | ?# """ """ """ """ ### # # ##?#### | | ?# #?## # # ## # | | ?# """ """ """ #?## # #### | | ?# """ """ """ ### #?## | | ?# """ """ """ ## ##??# # | | ?# # ##???# ## | | ?# """ """ """ """ * ! ##????# ##? | | ?# """ """ """ """!!%= ##?????## ##? | | ?# """ """ """ """ #! @ ##??????## #? | | ?# # ##?????### ## | | ?################### ### ##?????## # | | ???????????????????#!#?#### ##??????# | | ???????????????????#=#????####???????#### | | ???????????????????# #######????????????## | | ???????????????????#!*=# ##????????????# #### | | ?????????????#######| ############## #???## | | ??????????# [ #????? | | ???????????########## = #????? | | ????????????????????# ################????? | | ????????????????????# #####???????????????????? | | ????????????????????# #???????????????????????? | | ????????????????????## ##???????????????????????? | | ?????????????????????####????????????????????????? | | ?????????????????????????????????????????????????? | | | | | | | | | | | | | | | | | | | +----------------------------------------------------+ Best States ------------- Heat Dissipation 25 Energy Generation 10 Energy Capacity 125 Matter Stores 300 Matter Capacity 300 Sight Range 16 Terrain Scan Density 10 Evasion (%) 42 Recoil Reduction 2 Item Schematics ----------------- None Robot Schematics ------------------ None Fabricated ------------ Nothing Alien Tech Used ----------------- None Achievements -------------- None Challenges ------------ None Game ------ Seed VariableDeepRedirector Manual? 0 Play Time 00:15:27 Cumulative 103.3 hours Start 2020.04.04 @ 01:06:58 End 2020.04.04 @ 01:20:24 Sessions 1 Manual Loads 0 Difficulty Rogue Special Mode None Game No. 37 Rogue 37 Adventurer 0 Explorer 0 Win Type - Total 1 Types 1/0/0/0/0/0/0 Lore% 49 Gallery% 61 Achievement% 58 Wizard Run 0 Options --------- ASCII 1 Keyboard 1 Movement Numpad Keybinds 0 Fullscreen 1 Font 16/SmallcapsGlow Map View 75x55 Tactical HUD 1 Map Filters NONE Filters NONE Steam 1 RUN: d88fa2f9-0070-486d-b215-ce0f0bd42523